bitfinex-derivatives/quotes_SOLF0:USTF0_20260308
["timestamp","ask_amount","ask_price","bid_price","bid_amount"]
[1772994418729,14.76805787,81.724,81.69,5.93011347]
[1772994419330,14.76805787,81.724,81.68,3.99359578]
[1772994419331,14.76805787,81.724,81.692,5.93011347]
[1772994420225,1.3045386,81.723,81.692,5.93011347]
[1772994422234,1.3045386,81.723,81.648,22.046]
[1772994422235,11.01,81.742,81.694,11.017]
[1772994422429,10.20713262,81.737,81.694,11.017]
[1772994422731,10.20713262,81.736,81.694,11.017]
[1772994422929,10.20713262,81.735,81.702,11.016]
[1772994423128,11.36069004,81.743,81.702,11.016]
[1772994427428,11.38066292,81.737,81.694,11.017]
[1772994428233,11.38066292,81.737,81.68,3.99359578]
[1772994428234,11.38066292,81.737,81.701,11.016]
[1772994429333,3.99359578,81.72,81.66,3.99359578]
[1772994429533,11.39966703,81.719,81.66,3.99359578]
[1772994429728,11.39966703,81.736,81.691,11.017]
[1772994429933,3.99359578,81.73,81.691,11.017]
[1772994431130,3.99359578,81.73,81.67,3.99359578]
[1772994431334,11.39966703,81.736,81.68,3.99359578]
[1772994432738,11.39966703,81.736,81.698,11.016]
[1772994435542,11.38958326,81.729,81.698,11.016]
[1772994435842,11.38958326,81.729,81.67,3.99359578]
[1772994436242,11.38958326,81.729,81.687,11.018]
[1772994436738,11.38958326,81.729,81.694,11.017]
[1772994448749,11.38977988,81.719,81.66,3.99359578]
[1772994448946,3.99359578,81.71,81.66,3.99359578]
[1772994449150,11.38979349,81.709,81.66,3.99359578]
[1772994449552,11.38979349,81.709,81.65,3.99359578]
[1772994449752,11.38979349,81.709,81.673,11.02]
[1772994454260,11.38979349,81.709,81.681,11.018]
[1772994463861,11.38979349,81.709,81.65,3.99359578]
[1772994464756,11.38979349,81.709,81.667,11.02]
[1772994466057,11.36317463,81.707,81.66,11.021]
[1772994466262,11.36317463,81.707,81.65,3.99359578]
[1772994467861,11.36317463,81.707,81.666,11.02]
[1772994478065,11.36317463,81.707,81.672,11.02]
[1772994481466,298.65168051,81.716,81.67,3.99504438]
[1772994481668,298.65168051,81.716,81.68,3.99504438]
[1772994482767,298.65168051,81.716,81.688,11.018]
[1772994491773,11.35821448,81.725,81.688,11.018]
[1772994493577,11.35821448,81.725,81.695,11.017]
[1772994495868,11.35821448,81.725,81.68,3.99504438]
[1772994495869,11.35821448,81.725,81.685,11.018]
[1772994496071,3.99504438,81.73,81.685,11.018]
[1772994496072,11.27543419,81.719,81.685,11.018]
[1772994496375,11.27543419,81.719,81.68,3.99504438]
[1772994497574,11.27543419,81.719,81.672,325.671411]
[1772994497775,11.27543419,81.719,81.691,11.017]
[1772994500380,11.27543419,81.719,81.684,11.018]
[1772994500576,11.26543943,81.709,81.672,325.671411]
[1772994500780,11.26543943,81.709,81.662,331.70453581]
[1772994501580,11.26543943,81.709,81.669,11.02]
[1772994502779,11.20139218,81.689,81.656,322.03958587]
[1772994502983,11.20139218,81.689,81.64,3.99504438]
[1772994503776,11.20139218,81.689,81.656,11.022]
[1772994503976,11.20139218,81.689,81.63,3.99504438]
[1772994504780,11.20139218,81.689,81.645,11.023]
[1772994505684,11.21136947,81.706,81.66,3.99504438]
[1772994505884,11.21136947,81.699,81.65,3.99504438]
[1772994506781,11.21136947,81.699,81.648,11.023]
[1772994507177,11.21136947,81.699,81.64,3.99504438]
[1772994507486,11.21136947,81.699,81.65,3.99504438]
[1772994508987,11.21136947,81.699,81.655,11.022]
[1772994514693,11.21136947,81.699,81.65,3.99504438]
[1772994515792,11.21136947,81.699,81.658,11.022]
[1772994523904,3.99504438,81.69,81.64,3.99504438]
[1772994524108,11.21607089,81.689,81.63,3.99504438]
[1772994524407,11.21607089,81.689,81.643,11.024]
[1772994526107,11.22620088,81.686,81.643,11.024]
[1772994528904,11.226082,81.679,81.636,11.025]
[1772994529306,11.22626634,81.678,81.629,11.025]
[1772994529507,11.22626634,81.669,81.629,11.025]
[1772994533910,11.22626634,81.669,81.61,3.99504438]
[1772994534116,11.26746932,81.668,81.621,11.027]
[1772994541122,11.26746932,81.668,81.628,11.026]
[1772994541321,11.26746932,81.668,81.63,3.99909464]
[1772994541826,11.27465473,81.685,81.63,3.99909464]
[1772994542929,11.27465473,81.685,81.634,11.025]
[1772994544631,11.31385143,81.683,81.634,11.025]
[1772994546030,11.3160485,81.679,81.626,11.026]
[1772994547221,10.36800196,81.678,81.626,11.026]
[1772994547529,11.31611837,81.675,81.626,11.026]
[1772994547730,11.019,81.676,81.626,11.026]
[1772994547731,11.31611837,81.673,81.626,11.026]
[1772994549529,11.31621933,81.667,81.62,3.99909464]
[1772994549723,11.31621933,81.667,81.618,11.027]
[1772994550235,11.3141694,81.657,81.613,11.028]
[1772994550730,11.3141694,81.657,81.61,3.99909464]
[1772994551833,11.3141694,81.657,81.619,11.027]
[1772994552434,11.3141694,81.657,81.612,11.028]
[1772994552832,11.3141694,81.657,81.606,321.73295579]
[1772994553231,11.31707442,81.652,81.607,11.028]
[1772994553531,11.31707442,81.652,81.61,3.99909464]
[1772994553933,11.31707442,81.652,81.62,15.02609464]
[1772994556533,11.31707442,81.652,81.62,11.027]
[1772994560727,11.31707442,81.652,81.62,15.02609464]
[1772994566139,11.31707442,81.652,81.62,11.027]
[1772994569042,11.31707442,81.652,81.613,11.028]
[1772994570733,11.31707442,81.652,81.619,11.027]
[1772994572040,11.31707442,81.652,81.62,3.99909464]
[1772994574939,11.31707442,81.652,81.619,11.027]
[1772994576648,11.31707442,81.652,81.611,11.028]
[1772994582342,11.31707442,81.652,81.62,3.99909464]
[1772994583747,11.31707442,81.652,81.621,11.027]
[1772994597155,15.2350853,81.684,81.62,3.99909464]
[1772994597156,11.37185402,81.667,81.62,3.99909464]
[1772994597350,11.37185402,81.665,81.62,3.99909464]
[1772994597555,11.37185402,81.663,81.62,3.99909464]
[1772994597755,11.37185402,81.661,81.62,3.99909464]
[1772994597952,10.43640703,81.66,81.63,3.99909464]
[1772994598152,10.43640703,81.659,81.63,3.99909464]
[1772994598353,10.43640703,81.658,81.63,3.99909464]
[1772994598552,10.43640703,81.657,81.63,3.99909464]
[1772994598753,11.37185402,81.661,81.631,11.025]
[1772994598954,11.36895815,81.655,81.631,11.025]
[1772994599254,11.36895815,81.655,81.63,3.99909464]
[1772994599255,11.36895815,81.655,81.61,3.99909464]
[1772994599553,10.43807498,81.654,81.614,11.028]
[1772994599856,11.4559142,81.668,81.614,11.028]
[1772994599857,11.36897119,81.652,81.614,11.028]
[1772994600057,11.36727041,81.65,81.614,11.028]
[1772994600358,11.36727041,81.648,81.61,3.99909464]
[1772994601155,11.36728397,81.645,81.59,3.99909464]
[1772994601353,11.36728397,81.643,81.59,3.99909464]
[1772994601550,11.36728397,81.641,81.59,4.00210016]
[1772994601760,11.36728397,81.639,81.59,4.00210016]
[1772994601965,11.36728397,81.637,81.59,4.00210016]
[1772994602267,11.39352624,81.635,81.59,4.00210016]
[1772994602560,11.39352624,81.633,81.59,4.00210016]
[1772994602767,11.39352624,81.631,81.59,4.00210016]
[1772994602967,10.438316,81.63,81.59,4.00210016]
[1772994603163,11.39352766,81.649,81.61,4.00210016]
[1772994603364,21.81964428,81.648,81.61,4.00210016]
[1772994603570,11.39352766,81.647,81.61,4.00210016]
[1772994604863,11.39352766,81.647,81.62,4.00210016]
[1772994606674,11.39352766,81.647,81.611,11.028]
[1772994607169,11.37935737,81.658,81.62,15.02910016]
[1772994607375,11.37935737,81.658,81.62,11.027]
[1772994608472,11.37935737,81.658,81.62,15.02910016]
[1772994611071,11.37935737,81.658,81.62,11.027]
[1772994613672,11.37935737,81.658,81.62,15.02910016]
[1772994614574,11.37935737,81.658,81.629,11.025]
[1772994629394,11.37935737,81.658,81.63,4.00210016]
[1772994630390,11.4559142,81.685,81.63,4.00210016]
[1772994630598,10.27208971,81.684,81.64,4.00210016]
[1772994630793,10.27208971,81.683,81.64,4.00210016]
[1772994630993,11.4559142,81.699,81.64,4.00210016]
[1772994630994,10.27208971,81.682,81.64,4.00210016]
[1772994631288,10.27208971,81.681,81.64,4.00210016]
[1772994631494,10.27208971,81.68,81.64,4.00210016]
[1772994631694,4.00210016,81.69,81.64,4.00210016]
[1772994631886,10.26844763,81.689,81.641,11.024]
[1772994632087,10.26844763,81.688,81.641,11.024]
[1772994632396,10.26844763,81.687,81.641,11.024]
[1772994632588,5.59544516,81.685,81.648,11.023]
[1772994648508,5.59544516,81.685,81.655,11.022]
[1772994649504,5.62550244,81.699,81.655,11.022]
[1772994650908,5.62220277,81.696,81.653,11.022]
[1772994654108,5.62220277,81.696,81.66,4.00210016]
[1772994655206,5.62220277,81.696,81.668,11.02]
[1772994660413,5.62220277,81.696,81.635,22.05]
[1772994660414,5.62471672,81.717,81.682,11.018]
[1772994660617,5.62471672,81.726,81.68,4.00210016]
[1772994661214,5.62471672,81.726,81.659,646.91649777]
[1772994661215,5.62471672,81.726,81.679,11.019]
[1772994663223,5.62471672,81.726,81.688,11.018]
[1772994667926,5.62761845,81.747,81.695,11.017]
[1772994668123,5.62761845,81.747,81.7,3.99321014]
[1772994668630,5.62671153,81.729,81.67,3.99321014]
[1772994669029,5.62671153,81.729,81.68,3.99321014]
[1772994669930,5.62671153,81.729,81.689,11.017]
[1772994672921,5.62671153,81.729,81.696,11.016]
[1772994680939,5.61114603,81.739,81.703,11.015]
[1772994682142,5.68043516,81.759,81.711,11.014]
[1772994688347,5.67938861,81.755,81.704,11.015]
[1772994688540,5.67938861,81.749,81.704,11.015]
[1772994693547,5.67938861,81.749,81.71,11.015]
[1772994693745,3.99321014,81.77,81.71,3.99321014]
[1772994694048,5.66699973,81.768,81.71,3.99321014]
[1772994694348,5.66805818,81.766,81.717,11.014]
[1772994694548,5.66805818,81.759,81.717,11.014]
[1772994697350,5.67189563,81.757,81.717,11.014]
[1772994697949,5.67189563,81.749,81.69,3.99321014]
[1772994698148,5.67189563,81.749,81.661,22.043]
[1772994698351,5.67519642,81.739,81.69,3.99321014]
[1772994699845,5.67519642,81.739,81.698,11.016]
[1772994710350,5.67519642,81.739,81.691,11.017]
[1772994712353,5.63689893,81.737,81.691,11.017]
[1772994715661,3.99321014,81.73,81.681,11.019]
[1772994715859,3.99321014,81.73,81.638,22.049]
[1772994715860,5.63691006,81.728,81.67,3.99321014]
[1772994716865,5.65763636,81.739,81.7,3.99321014]
[1772994717061,5.65763636,81.739,81.69,3.99321014]
[1772994717262,5.65763636,81.739,81.68,3.99321014]
[1772994718766,5.65763636,81.739,81.695,11.017]
[1772994720665,5.65763636,81.739,81.702,11.016]
[1772994721969,5.65763636,81.739,81.694,11.017]
[1772994724371,5.68515952,81.719,81.66,3.99269007]
[1772994725765,5.68515952,81.719,81.67,11.02]
[1772994726371,5.68515952,81.719,81.677,11.019]
[1772994727973,21.09,81.75,81.66,3.99269007]
[1772994727974,5.68389606,81.709,81.668,11.02]
[1772994728274,5.68684555,81.719,81.66,3.99269007]
[1772994728474,5.68684555,81.719,81.67,3.99269007]
[1772994729874,5.68684555,81.719,81.677,11.019]
[1772994730370,5.69242788,81.729,81.68,3.99269007]
[1772994730574,5.69242788,81.727,81.68,3.99269007]
[1772994731573,5.69242788,81.727,81.67,3.99269007]
[1772994731870,5.69242788,81.727,81.686,11.018]
[1772994734070,5.69242788,81.727,81.695,11.017]
[1772994735374,5.68608151,81.739,81.695,11.017]
[1772994735674,5.68608151,81.737,81.695,11.017]
[1772994737668,5.68608567,81.735,81.695,11.017]
[1772994744277,5.69825542,81.733,81.695,11.017]
[1772994744474,9.69094549,81.73,81.695,11.017]
[1772994744879,5.69825542,81.73,81.695,11.017]
[1772994746283,5.698253,81.739,81.695,11.017]
[1772994746484,10.36867999,81.738,81.695,11.017]
[1772994746689,5.698253,81.739,81.695,11.017]
[1772994746984,16.06632031,81.738,81.695,11.017]
[1772994747185,5.69825364,81.738,81.695,11.017]
[1772994747681,5.69825364,81.749,81.709,11.015]
[1772994747874,5.69825364,81.747,81.709,11.015]
[1772994748078,16.06081172,81.746,81.709,11.015]
[1772994748278,5.69243317,81.746,81.709,11.015]
[1772994751289,5.69243317,81.746,81.662,22.042]
[1772994751290,5.69243317,81.746,81.715,11.014]
[1772994751482,21.09,81.75,81.715,11.014]
[1772994752284,5.68959096,81.749,81.715,11.014]
[1772994757195,5.68959096,81.749,81.7,3.99269007]
[1772994758802,5.68959096,81.749,81.721,11.013]
[1772994760798,0.001,81.75,81.665,12.24]
[1772994761001,0.001,81.75,81.7,3.99269007]
[1772994762505,5.72079016,81.749,81.715,11.014]
[1772994763206,0.001,81.75,81.715,11.014]
[1772994774010,0.001,81.75,81.675,22.039]
[1772994774312,5.60948143,81.749,81.69,3.99269007]
[1772994775811,5.60948143,81.749,81.705,11.015]
[1772994776214,3.99369007,81.75,81.67,3.99269007]
[1772994776215,5.60662431,81.729,81.67,3.99269007]
[1772994777318,5.60662431,81.729,81.68,3.99269007]
[1772994777817,5.60662431,81.729,81.692,11.017]
[1772994783916,15.9,81.747,81.7,3.99269007]
[1772994784117,15.9,81.747,81.71,3.99269007]
[1772994785216,15.9,81.747,81.72,11.013]
[1772994786120,15.9,81.747,81.674,657.19986641]
[1772994786121,468.31767048,81.775,81.744,11.01]
[1772994786320,468.31767048,81.775,81.72,3.98964245]
[1772994786321,5.74635039,81.774,81.72,3.98964245]
[1772994786516,5.74635039,81.769,81.72,3.98964245]
[1772994787824,5.74635039,81.769,81.725,11.012]
[1772994788321,3.98964245,81.75,81.7,3.98964245]
[1772994788621,3.98964245,81.75,81.69,3.98964245]
[1772994788622,5.76956555,81.749,81.69,3.98964245]
[1772994789118,9.75920477,81.74,81.69,3.98964245]
[1772994789313,5.76956232,81.739,81.69,3.98964245]
[1772994789821,5.76956232,81.739,81.703,11.015]
[1772994793921,5.76956232,81.739,81.694,11.017]
[1772994797321,5.76956232,81.739,81.701,11.016]
[1772994803730,5.76956232,81.739,81.707,11.015]
[1772994810933,5.76956232,81.739,81.69,3.98964245]
[1772994811129,5.76956232,81.739,81.674,657.19986641]
[1772994811335,5.76956232,81.739,81.69,3.98964245]
[1772994812730,5.76956232,81.739,81.697,11.016]
[1772994813235,5.73375237,81.738,81.68,3.98964245]
[1772994814935,5.73375237,81.738,81.688,11.017]
[1772994816326,11.011,81.739,81.68,3.98964245]
[1772994816327,5.71748122,81.729,81.68,15.00864245]
[1772994820732,5.71748122,81.729,81.687,11.018]
[1772994828042,5.71748122,81.729,81.695,11.017]
[1772994831340,23.55,81.755,81.629,38.27112564]
[1772994831341,5.68657298,81.709,81.629,38.27112564]
[1772994831539,5.68657298,81.679,81.62,3.98964245]
[1772994832239,5.68657298,81.679,81.64,3.98964245]
[1772994832446,5.57767588,81.698,81.65,3.98964245]
[1772994832638,5.57767588,81.696,81.65,3.98964245]
[1772994832836,5.57767588,81.696,81.64,3.98964245]
[1772994833040,5.57767588,81.696,81.653,11.022]
[1772994833247,5.57767588,81.696,81.66,3.98964245]
[1772994834847,5.57767588,81.696,81.66,15.01064245]
[1772994835943,5.57767588,81.696,81.66,11.021]
[1772994837047,21.65,81.695,81.66,11.021]
[1772994840543,21.65,81.695,81.65,3.98964245]
[1772994840748,21.65,81.695,81.671,11.02]
[1772994842645,21.65,81.695,81.663,11.021]
[1772994842846,5.73875021,81.694,81.649,663.83461264]
[1772994843640,5.73875021,81.694,81.65,3.98964245]
[1772994843946,5.73875021,81.694,81.655,11.022]
[1772994844142,5.73875021,81.694,81.65,3.98964245]
[1772994845654,5.73875021,81.694,81.65,3.99547519]
[1772994845852,5.73875021,81.694,81.662,11.021]
[1772994848454,21.65,81.695,81.662,11.021]
[1772994851158,21.65,81.695,81.67,11.02]
[1772994859466,5.7378504,81.694,81.662,11.021]
[1772994860673,21.65,81.695,81.669,11.02]
[1772994861974,5.73784491,81.703,81.669,11.02]
[1772994864976,24.41055956,81.702,81.669,11.02]
[1772994868183,5.73168266,81.701,81.677,11.019]
[1772994868480,5.73168266,81.739,81.68,3.99547519]
[1772994868681,5.73168266,81.737,81.67,3.99547519]
[1772994868882,5.73168266,81.726,81.677,11.019]
[1772994870880,5.72866003,81.724,81.677,11.019]
[1772994871681,5.72866003,81.724,81.684,11.018]
[1772994878187,5.72213385,81.722,81.684,11.018]
[1772994880194,34.07243354,81.732,81.691,11.017]
[1772994880394,5.72043354,81.73,81.691,11.017]
[1772994880595,5.72043354,81.728,81.691,11.017]
[1772994880793,5.72043354,81.726,81.691,11.017]
[1772994880994,17.34,81.732,81.697,11.016]
[1772994881290,23.0604333,81.732,81.697,11.016]
[1772994881495,5.7204333,81.731,81.697,11.016]
[1772994888997,5.7204333,81.731,81.687,11.018]
[1772994889202,5.61766339,81.729,81.67,3.99547519]
[1772994889403,14.57471917,81.73,81.67,3.99547519]
[1772994889404,5.61766339,81.727,81.67,3.99547519]
[1772994889704,5.61766339,81.725,81.67,3.99547519]
[1772994889901,17.34,81.732,81.649,663.83461264]
[1772994889902,5.61766339,81.709,81.66,3.99547519]
[1772994890905,5.61766339,81.709,81.665,11.021]
[1772994891604,5.61766339,81.709,81.671,11.02]
[1772994895803,5.5829252,81.699,81.649,663.83461264]
[1772994896106,5.5829252,81.689,81.649,663.83461264]
[1772994896802,5.58457685,81.659,81.565,38.27112564]
[1772994896998,5.58457685,81.659,81.6,3.99547519]
[1772994897205,5.58457853,81.649,81.594,323.09837421]
[1772994897506,5.58457853,81.639,81.594,323.09837421]
[1772994897700,5.58457853,81.639,81.6,11.029]
[1772994902013,3.99547519,81.66,81.609,2.62769947]
[1772994902507,3.99547519,81.66,81.594,323.09837421]
[1772994902508,3.99547519,81.67,81.614,2.63440902]
[1772994902717,3.99547519,81.69,81.631,2.63464609]
[1772994903515,3.99547519,81.69,81.641,2.63454487]
[1772994904008,4.04808786,81.683,81.641,2.63454487]
[1772994905319,4.04808786,81.683,81.643,2.68073869]
[1772994906020,4.04808786,81.683,81.647,11.023]
[1772994906323,3.90179007,81.696,81.651,2.6604007]
[1772994907919,3.90179007,81.696,81.656,2.65174316]
[1772994909217,3.90179007,81.696,81.655,11.022]
[1772994909218,3.90179007,81.696,81.658,2.63314105]
[1772994915025,3.90179007,81.696,81.648,11.023]
[1772994916627,3.90179007,81.696,81.594,323.09837421]
[1772994916628,3.90179007,81.679,81.639,11.024]
[1772994916828,3.90179007,81.679,81.635,2.64157721]
[1772994918031,7.89870168,81.69,81.641,2.64157721]
[1772994918231,3.90179007,81.69,81.651,2.63974277]
[1772994921532,3.90179007,81.689,81.651,2.63974277]
[1772994923637,3.90179007,81.699,81.655,2.62066265]
[1772994925329,17.9,81.698,81.655,2.62066265]
[1772994925532,3.90179007,81.697,81.655,2.62066265]
[1772994925730,3.90179007,81.697,81.659,2.63910941]
[1772994926830,3.90179007,81.697,81.662,11.021]
[1772994927336,3.90179007,81.697,81.662,13.66134263]
[1772994928926,17.9,81.698,81.668,2.53412891]
[1772994929837,17.9,81.698,81.672,2.53412891]
[1772994932638,3.90179007,81.697,81.671,11.02]
[1772994932839,3.90179007,81.697,81.664,11.021]
[1772994933440,3.90179007,81.697,81.671,11.02]
[1772994933834,17.9,81.698,81.671,11.02]
[1772994934839,17.9,81.698,81.65,3.99691161]
[1772994934840,17.9,81.698,81.676,11.019]
[1772994935342,298.82405831,81.709,81.672,2.42168146]
[1772994936244,3.95775148,81.721,81.686,2.4304029]
[1772994937346,3.95775148,81.739,81.686,2.4304029]
[1772994937935,3.95775148,81.739,81.694,11.017]
[1772994942250,3.95775148,81.739,81.699,11.016]
[1772994943446,3.95775148,81.735,81.695,2.43207088]
[1772994944639,3.95775148,81.735,81.697,11.016]
[1772994945046,6.41,81.741,81.695,2.45706615]
[1772994945352,3.95775148,81.74,81.695,2.45706615]
[1772994946049,7.95466309,81.74,81.695,2.45706615]
[1772994946751,3.95775148,81.739,81.703,11.015]
[1772994951158,3.95775148,81.739,81.703,13.47433636]
[1772994953850,3.95775148,81.739,81.705,11.015]
[1772994954056,3.95775148,81.739,81.706,2.46944763]
[1772994954756,3.95775148,81.739,81.709,11.015]
[1772994955749,3.95775148,81.739,81.685,2.47253086]
[1772994955950,3.95775148,81.729,81.685,2.47253086]
[1772994957458,3.95775148,81.729,81.692,11.017]
[1772994958959,3.95775148,81.729,81.7,11.016]
[1772994960366,6.43,81.745,81.705,2.47760647]
[1772994961458,6.43,81.745,81.7,3.99691161]
[1772994961459,3.95775148,81.767,81.716,2.47760647]
[1772994962465,3.95775148,81.767,81.728,11.012]
[1772994970067,3.95775148,81.767,81.728,13.53933685]
[1772994970271,3.95775148,81.767,81.73,11.012]
[1772994973172,3.95775148,81.767,81.737,11.011]
[1772994973367,3.88325725,81.779,81.726,2.5274398]
[1772994974577,3.88325725,81.769,81.726,2.5274398]
[1772994976379,3.88325725,81.759,81.714,2.55850434]
[1772994977073,3.88325725,81.759,81.715,11.014]
[1772994978574,3.88325725,81.759,81.715,13.57283536]
[1772994978776,3.88325725,81.759,81.716,2.55883536]
[1772994979275,3.88325725,81.739,81.67,62.0]
[1772994979474,3.88325725,81.719,81.673,2.55883536]
[1772994980474,3.88325725,81.709,81.673,2.55883536]
[1772994980674,7.871509,81.7,81.651,2.56436794]
[1772994980880,3.88325725,81.699,81.651,2.56436794]
[1772994981774,3.88325725,81.699,81.66,11.021]
[1772994983272,3.88325725,81.689,81.651,13.58736794]
[1772994985882,3.98825175,81.68,81.652,2.65230577]
[1772994986082,3.88325725,81.679,81.642,11.024]
[1772994987783,3.98825175,81.68,81.604,22.058]
[1772994987784,3.98825175,81.68,81.647,2.48653625]
[1772994988679,3.88325725,81.689,81.647,2.48653625]
[1772994995688,3.88325725,81.689,81.648,11.023]
[1772994997794,3.78434566,81.688,81.647,2.48653625]
[1772994998292,3.78434566,81.688,81.648,11.023]
[1772994998689,3.78434566,81.688,81.641,2.4878495]
[1772994998892,3.78434566,81.649,81.582,328.15898474]
[1772994999087,3.78434566,81.639,81.592,2.4878495]
[1772994999485,3.78434566,81.639,81.595,11.03]
[1772994999787,3.78434566,81.639,81.594,2.4878495]
[1772994999992,3.98825175,81.65,81.601,2.4878495]
[1772995000192,7.77259741,81.65,81.601,2.4878495]
[1772995000490,3.78434566,81.649,81.601,2.4878495]
[1772995003802,3.78434566,81.649,81.603,2.61410895]
[1772995004904,3.78434566,81.649,81.606,11.029]
[1772995006795,3.78434566,81.649,81.607,2.61133509]
[1772995007202,3.78434566,81.639,81.597,11.03]
[1772995007507,3.78434566,81.639,81.583,2.61133509]
[1772995007802,3.78434566,81.639,81.599,2.61133509]
[1772995008800,3.78434566,81.639,81.601,11.029]
[1772995016007,3.78434566,81.652,81.605,2.60797609]
[1772995016309,3.78434566,81.652,81.611,2.6136063]
[1772995017112,3.98825175,81.65,81.596,2.6136063]
[1772995017307,3.78434566,81.649,81.596,2.6136063]
[1772995017707,3.78434566,81.649,81.604,11.029]
[1772995017908,3.78434566,81.639,81.604,11.029]
[1772995018912,3.78434566,81.639,81.596,2.6136063]
[1772995020214,3.78434566,81.638,81.596,2.6136063]
[1772995020519,3.78434566,81.638,81.589,11.031]
[1772995021117,3.78434566,81.629,81.58,11.032]
[1772995021317,3.78434566,81.619,81.58,11.032]
[1772995021717,3.78434566,81.609,81.572,13.65537851]
[1772995022916,3.98825175,81.62,81.58,2.6223727]
[1772995023117,4.04219556,81.619,81.58,2.6223727]
[1772995024116,4.04219556,81.619,81.571,11.033]
[1772995024524,4.04219556,81.609,81.571,11.033]
[1772995024824,4.04219556,81.62,81.574,2.6403709]
[1772995025323,3.78148375,81.619,81.574,2.6403709]
[1772995025821,3.78148375,81.629,81.584,2.63938574]
[1772995026820,3.78148375,81.629,81.58,3.98825175]
[1772995026821,3.78148375,81.629,81.586,13.6618921]
[1772995027222,3.78148375,81.629,81.587,2.6308921]
[1772995028919,3.78148375,81.629,81.588,11.031]
[1772995029324,3.78148375,81.619,81.571,2.62926199]
[1772995029725,3.78148375,81.609,81.571,13.66226199]
[1772995030923,4.0027065,81.63,81.58,2.62926199]
[1772995031326,7.78419025,81.63,81.58,2.62926199]
[1772995031526,3.78148375,81.629,81.58,2.62926199]
[1772995031926,3.78148375,81.628,81.582,11.032]
[1772995032825,4.0027065,81.63,81.582,11.032]
[1772995032826,3.78148375,81.626,81.582,11.032]
[1772995033022,3.78148375,81.619,81.574,11.033]
[1772995033529,3.78148375,81.619,81.567,2.62532446]
[1772995033530,3.78148375,81.609,81.555,2.61880819]
[1772995034224,3.78148375,81.609,81.561,2.61880819]
[1772995034826,3.78148375,81.609,81.567,2.61880819]
[1772995035930,3.78148375,81.609,81.569,2.61795412]
[1772995036729,3.78148375,81.609,81.57,11.033]
[1772995040928,3.78148375,81.606,81.557,2.61673583]
[1772995041130,3.78148375,81.589,81.467,234.19112564]
[1772995041324,11.32430357,81.627,81.467,234.19112564]
[1772995041325,3.78148375,81.569,81.52,6.62677235]
[1772995041526,3.78148375,81.569,81.52,2.62406585]
[1772995041726,3.78148375,81.595,81.541,2.62406585]
[1772995042131,470.71439352,81.608,81.541,2.62406585]
[1772995042132,3.78148375,81.589,81.541,2.62406585]
[1772995042322,3.78148375,81.581,81.521,2.62406585]
[1772995042527,3.78148375,81.581,81.531,2.62406585]
[1772995042726,3.78148375,81.581,81.541,2.62406585]
[1772995043834,3.78148375,81.581,81.544,13.81313218]
[1772995045033,470.71439352,81.608,81.497,2.13359492]
[1772995045034,3.78148375,81.606,81.561,2.77613218]
[1772995045330,470.71439352,81.608,81.573,2.79968343]
[1772995048235,470.71439352,81.608,81.578,11.032]
[1772995048434,3.78148375,81.619,81.578,11.032]
[1772995049536,3.78148375,81.619,81.58,4.0027065]
[1772995049733,3.78148375,81.619,81.58,6.75500773]
[1772995050337,3.78148375,81.632,81.582,2.75230123]
[1772995051837,3.78148375,81.619,81.568,2.74309011]
[1772995052637,3.78148375,81.619,81.579,2.74309011]
[1772995052838,3.78148375,81.619,81.565,2.74225281]
[1772995053245,3.9013193,81.609,81.565,2.74225281]
[1772995053840,3.9013193,81.609,81.559,11.035]
[1772995054931,3.9013193,81.609,81.562,11.034]
[1772995055138,3.9013193,81.609,81.562,13.76558564]
[1772995055339,3.9013193,81.609,81.563,2.6165595]
[1772995056642,3.9013193,81.609,81.571,2.6165595]
[1772995062337,3.9013193,81.609,81.564,11.034]
[1772995063141,3.9013193,81.606,81.559,2.62103435]
[1772995063848,3.9013193,81.606,81.56,11.035]
[1772995064046,3.9013193,81.606,81.56,13.64934002]
[1772995064350,3.9013193,81.606,81.564,11.034]
[1772995064849,3.9013193,81.606,81.565,2.61434002]
[1772995065744,3.9013193,81.606,81.568,11.034]
[1772995065944,3.9013193,81.606,81.565,2.61434002]
[1772995066747,3.9013193,81.606,81.566,11.034]
[1772995066949,3.9013193,81.606,81.567,2.61867842]
[1772995067145,3.9013193,81.606,81.57,6.62138492]